Cogmind - Beta 13 @@@ ROGUE MODE // 2024.04.22 @ 11:09:19 Player: monistgf Result: Destroyed by Dirty Bomb Trap Performance ------------- Evolutions (4) 2000 Regions Visited (8) 1600 Robots Destroyed (77) 385 Value Destroyed (2399) 2399 Prototype IDs (3) 60 Alien Tech Used (0) 0 Bonus (93) 93 TOTAL SCORE: 6537 Bonus ------- High Alert Combat Kills 110 Friendly Fire -17 Cogmind --------- Core Integrity 0/850 Matter 80/300 Energy 121/125 System Corruption 8% Temperature Cool (12) Movement Flying (32) Location -6/Lower Caves Parts ------- > --- POWER (1) -------- Light Ion Engine > --- PROPULSION (4) --- Nuclear Pulse Thruster Nuclear Pulse Thruster Cooled Cesium-ion Thruster > --- UTILITY (5) ------ Advanced Heat Sink Improved Terrain Scanner Seismic Detector > --- WEAPON (5) ------- Chainsword Power Sword Heavy Pick > --- INVENTORY (5) ---- Seismic Detector Magnetic Acceleration Cannon Peak State ------------ > --- POWER ------------ Neutrino Core > --- PROPULSION ------- Medium Treads Medium Treads Armored Huge Wheel > --- UTILITY ---------- Improved Heat Sink High-capacity Storage Unit Machine Analyzer Advanced Signal Interpreter Improved Medium Armor Plating > --- WEAPON ----------- Thermic Laser Gauss Rifle Hypervelocity Gauss Rifle Hypervelocity Gauss Rifle Hypervelocity Gauss Rifle > --- INVENTORY -------- Neutrino Core Advanced Treads Medium Treads Medium Treads Medium Matter Pod Advanced Visual Processing Unit Seismic Detector Target Analyzer Improved Target Analyzer Weapon Cycler Improved Light Armor Plating Beam Rifle Plasma Rifle Hypervelocity Gauss Rifle Missile Launcher Great Axe [Rating: 67] Favorites ----------- Power Neutrino Core Engine Light Ion Engine Power Core Neutrino Core Propulsion Medium Treads Treads Medium Treads Leg Aluminum Leg Wheel Armored Huge Wheel Flight Unit Nuclear Pulse Thruster Utility Machine Analyzer Device Seismic Detector Storage Small Storage Unit Processor Machine Analyzer Protection Improved Medium Armor Plating Weapon Gauss Rifle Energy Gun Beam Rifle Ballistic Gun Gauss Rifle Launcher Missile Launcher Slashing Weapon Great Axe Piercing Weapon Heavy Pick Build | -11 -10 -9 -8 -7 -6 -6 -6 -6 ------- Run | Yrd Mat Mat Mat Fac Fac Was Fac Low Slots Evolved 8 | . . 2 2 2 2 . . . Power . | . . . . . . . . . Propulsion 2 | . . 1 . 1 . . . . Utility 3 | . . . . 1 2 . . . Weapon 3 | . . 1 2 . . . . . Parts Attached 91 | . . 11 11 26 30 1 12 . Power 5 | . . . 2 1 1 . 1 . Engine 1 | . . . . . . . 1 . Core 4 | . . . 2 1 1 . . . Reactor . | . . . . . . . . . Propulsion 25 | . . 5 2 10 5 . 3 . Treads 16 | . . 2 2 7 5 . . . Leg . | . . . . . . . . . Wheel 6 | . . 3 . 3 . . . . Hover . | . . . . . . . . . Flight 3 | . . . . . . . 3 . Utility 22 | . . 1 2 4 12 1 2 . Device 10 | . . . . . 7 1 2 . Storage 3 | . . . . 2 1 . . . Processor 3 | . . . . 1 2 . . . Hackware . | . . . . . . . . . Protection 6 | . . 1 2 1 2 . . . Artifact . | . . . . . . . . . Weapon 39 | . . 5 5 11 12 . 6 . Energy Gun 4 | . . . . 1 3 . . . Energy Cannon . | . . . . . . . . . Ballistic Gun 23 | . . 5 5 7 6 . . . Ballistic Cannon . | . . . . . . . . . Launcher 2 | . . . . 2 . . . . Special Weapon . | . . . . . . . . . Impact Weapon . | . . . . . . . . . Slashing Weapon 8 | . . . . 1 3 . 4 . Piercing Weapon 2 | . . . . . . . 2 . Special Melee Weapon . | . . . . . . . . . Unidentified Prototypes 1 | . . . . . . . 1 . Parts Lost 24 | . . . 3 1 20 . . . Power 1 | . . . . . 1 . . . Propulsion 7 | . . . 1 . 6 . . . Utility 6 | . . . 1 . 5 . . . Weapon 10 | . . . 1 1 8 . . . Highest Loss Streak 11 | . . . 1 1 11 . . . To Critical Strikes . | . . . . . . . . . Average Slot Usage (%) 81 | . 85 95 99 91 87 6 28 66 Engine 1 | . 14 11 1 . . . . 6 Core 4 | . . . 7 7 6 . . . Treads 11 | . . 11 14 15 13 . . . Wheel 7 | . . 22 12 7 4 . . . Flight 1 | . . . . . . . 8 20 Device 4 | . . . . . 6 6 15 20 Storage 6 | . 14 11 9 7 5 . . . Processor 5 | . . . . 7 11 . . . Protection 5 | . . 6 8 7 5 . . . Energy Gun 1 | . . . . 1 5 . . . Ballistic Gun 26 | . 28 33 44 35 20 . . . Slashing Weapon 1 | . . . . . 2 . 2 13 Naked Turns 8 | . . . . . 5 3 . . Heaviest Build 121 | 12 12 17 25 119 121 1 15 15 Greatest Support 112 | 20 20 32 26 56 112 3 18 18 Greatest Overweight (x) 4 | . . . 2 4 4 . . . Average Overweight (x) . | . . . 1 1 1 . . . Largest Inventory Capacity 25 | . 8 8 8 25 25 5 5 5 Average Capacity 12 | . 8 8 8 14 19 5 5 5 Most Carried 20 | . 8 8 8 19 20 5 5 2 Average Carried 10 | . 6 7 7 11 17 4 4 2 Final Capacity 25 | 8 8 8 8 25 5 5 5 5 Final Carried 19 | 6 8 8 8 19 5 5 2 2 Class Distribution -------------------- 42% | Scavenger-Tank 31% | Tank 19% | Mutant 3% | Gunner Dominant Class ---------------- Mutant | -10/Materials Scavenger-Tank | -9/Materials Scavenger-Tank | -8/Materials Scavenger-Tank | -7/Factory Tank | -6/Factory Mutant | -6/Waste Mutant | -6/Factory Sprinter | -6/Lower Caves Resources | -11 -10 -9 -8 -7 -6 -6 -6 -6 ----------- Run | Yrd Mat Mat Mat Fac Fac Was Fac Low Matter Collected 2606 | 187 32 272 445 1170 313 . 146 41 Remotely . | . . . . . . . . . Salvage Created 3018 | . 49 409 665 1253 556 . 45 41 Parts 167 | . 6 20 40 60 35 . 5 1 Haulers Intercepted 2 | . . 1 1 . . . . . Recyclers Shooed 1 | . . . 1 . . . . . Parts Field Recycled . | . . . . . . . . . Retrieved Matter . | . . . . . . . . . Parts Self-Destructed . | . . . . . . . . . Prevented 3 | . . . . . . . . 3 Kills | -11 -10 -9 -8 -7 -6 -6 -6 -6 ------- Run | Yrd Mat Mat Mat Fac Fac Was Fac Low Combat Hostiles Destroyed 54 | . 3 7 12 21 11 . . . Guns 48 | . 3 7 12 17 9 . . . AOE 6 | . . . . 4 2 . . . Classes Destroyed 14 | . 1 5 3 3 . . 1 1 Worker 8 | . . . . 3 3 . 2 . Builder 6 | . . 1 1 2 2 . . . Tunneler 1 | . . . . . . . 1 . Hauler 2 | . . 1 1 . . . . . Recycler 5 | . . . 1 4 . . . . Operator 1 | . . . 1 . . . . . Swarmer 16 | . 3 . 3 7 3 . . . Grunt 17 | . . 3 5 6 3 . . . Brawler 1 | . . . . 1 . . . . Duelist 2 | . . 1 . . 1 . . . Sentry 9 | . . 3 3 3 . . . . Hunter 3 | . . . 1 2 . . . . Programmer 6 | . . . . 2 4 . . . Samaritan 1 | . . . . . . . . 1 Best Kill Streak 8 | . 3 3 5 8 6 . 2 . Combat Bots Only 5 | . 3 3 3 5 4 . . . Max Kills in Single Turn 3 | . 1 1 1 3 3 . 1 1 Gunslinging . | . . . . . . . . . Exploded 3 | . . . . 3 1 . . . Melee . | . . . . . . . . . Uniques/NPCs Destroyed . | . . . . . . . . . Combat | -11 -10 -9 -8 -7 -6 -6 -6 -6 -------- Run | Yrd Mat Mat Mat Fac Fac Was Fac Low Hostile Shots Fired 588 | . 10 31 61 151 330 . 3 2 Missed 167 | . 2 7 18 40 98 . . 2 Damage Taken 5951 | . 70 382 612 1249 3555 . 59 24 Core 1130 | . 9 113 29 114 782 . 59 24 Absorbed by Shields . | . . . . . . . . . Core Remaining (%) 88 | 100 96 71 94 83 . . . . Volleys Fired 136 | . 5 25 29 53 24 . . . Largest 5 | . 2 3 5 5 5 . . . Hottest 216 | . 40 63 114 163 216 . . . Shots Fired 560 | . 10 75 140 241 94 . . . Gun 558 | . 10 75 140 239 94 . . . Cannon . | . . . . . . . . . Launcher 2 | . . . . 2 . . . . Special . | . . . . . . . . . Kinetic 527 | . 10 75 140 231 71 . . . Thermal 31 | . . . . 8 23 . . . Explosive 2 | . . . . 2 . . . . Electromagnetic . | . . . . . . . . . Robot Hit Streak 12 | . 1 8 12 11 12 . . . Robot Miss Streak 9 | . 2 9 3 6 4 . . . Penetration Max 1 | . . . . 1 1 . . . Secondary Targets 3 | . . . . 1 2 . . . Max Gunslinging Chain 1 | . . . . 1 1 . . . Shots Hit Robots 321 | . 3 46 84 120 64 . 3 1 Core Hits 146 | . 3 21 34 55 30 . 2 1 Critical Kills 2 | . . . . . 2 . . . Critical Parts Destroyed 8 | . . . 1 1 6 . . . Critical Strikes 14 | . . 1 1 1 11 . . . Burn 2 | . . . . . 2 . . . Destroy 11 | . . 1 1 1 8 . . . Sever 1 | . . . . . 1 . . . Melee Attacks 30 | . . . . 1 16 . 12 1 Impact . | . . . . . . . . . Slashing 30 | . . . . 1 16 . 12 1 Piercing . | . . . . . . . . . Sneak Attacks 6 | . . . . . 2 . 3 1 Combat Hostiles . | . . . . . . . . . Follow-up Attacks . | . . . . . . . . . Damage Inflicted 6308 | . 37 550 1058 2533 1778 . 260 92 Guns 4964 | . 37 550 1058 2185 1134 . . . Cannons . | . . . . . . . . . Explosions 657 | . . . . 348 309 . . . Melee 687 | . . . . . 335 . 260 92 Ramming . | . . . . . . . . . Kinetic 4549 | . 37 550 1058 2110 794 . . . Thermal 724 | . . . . 75 649 . . . Explosive 348 | . . . . 348 . . . . Electromagnetic . | . . . . . . . . . Impact . | . . . . . . . . . Slashing 687 | . . . . . 335 . 260 92 Piercing . | . . . . . . . . . Highest Corruption 8 | . . . . 2 8 8 8 8 Average Corruption 5 | . . . . 1 3 8 8 8 Corruption Purged . | . . . . . . . . . Corruption Blocked . | . . . . . . . . . Effects 41 | . . . . 3 18 5 13 2 Message Errors 10 | . . . . . 3 2 4 1 Matter Fused 12 | . . . . 1 6 2 3 . Heat Flow Errors 4 | . . . . 1 2 . 1 . Energy Discharges 3 | . . . . . 1 . 2 . Data Loss (minor) 1 | . . . . . 1 . . . Data Loss (major) 6 | . . . . 1 1 1 2 1 Misfires 2 | . . . . . 2 . . . Alerts 1 | . . . . . . . 1 . Weapon Failures 2 | . . . . . 2 . . . Overload Shots . | . . . . . . . . . Overflow Damage 235 | . . . . 40 152 . 43 . Projectiles . | . . . . . . . . . Explosions 184 | . . . . 40 144 . . . Melee 51 | . . . . . 8 . 43 . Knockbacks . | . . . . . . . . . Impact . | . . . . . . . . . Kinetic . | . . . . . . . . . Secondary . | . . . . . . . . . Self-Inflicted Damage 12 | . . . . . 12 . . . Shots 1 | . . . . . 1 . . . Rammed 1 | . . . . . 1 . . . Targets Rammed 1 | . . . . . 1 . . . Kicked . | . . . . . . . . . Crushed . | . . . . . . . . . Highest Temperature 506 | . . 21 289 407 506 . 59 . Average Temperature 111 | . . 5 86 117 168 . 32 . Received Heat Transfer 1122 | . . 93 252 345 405 . 27 . Effects 7 | . . . 1 2 4 . . . Shutdowns 1 | . . . . . 1 . . . Energy Bleed 3 | . . . 1 . 2 . . . Interference 2 | . . . . 2 . . . . Short Circuit 1 | . . . . . 1 . . . Siege Activations . | . . . . . . . . . Robots Corrupted . | . . . . . . . . . Combat Hostiles . | . . . . . . . . . Parts Fried . | . . . . . . . . . Impact Corruptions . | . . . . . . . . . Robots Melted . | . . . . . . . . . Combat Hostiles . | . . . . . . . . . Parts Melted 2 | . . . . . 2 . . . Heat Transferred 1043 | . . . . 185 858 . . . Parts Sabotaged . | . . . . . . . . . Parts Stolen . | . . . . . . . . . Parts Stripped . | . . . . . . . . . Power Chain Reactions . | . . . . . . . . . Alert | -11 -10 -9 -8 -7 -6 -6 -6 -6 ------- Run | Yrd Mat Mat Mat Fac Fac Was Fac Low Peak Influence 536 | . 72 278 322 536 442 86 160 . Initial 249 | . . 29 117 137 249 71 60 . Average 230 | . 32 154 222 350 218 73 73 . Maximum Alert Level 2 | . . 1 1 2 2 . . . Low Security (%) 42 | . 100 64 32 12 40 100 100 . Level 1 41 | . . 35 67 45 51 . . . Level 2 15 | . . . . 41 7 . . . Level 3 . | . . . . . . . . . Level 4 . | . . . . . . . . . Level 5 . | . . . . . . . . . High Security . | . . . . . . . . . Max Security . | . . . . . . . . . Squads Dispatched 14 | . . 1 . 5 5 . 3 . Investigation 2 | . . . . 1 . . 1 . Extermination 5 | . . . . 2 2 . 1 . Reinforcement 4 | . . 1 . 2 . . 1 . Assault . | . . . . . . . . . Garrison 3 | . . . . . 3 . . . Intercept . | . . . . . . . . . Searches Triggered . | . . . . . . . . . Construction Impeded . | . . . . . . . . . Haulers Reinforced . | . . . . . . . . . Active Scanning Responses . | . . . . . . . . . Cargo Convoy Interrupts . | . . . . . . . . . Stealth | -11 -10 -9 -8 -7 -6 -6 -6 -6 --------- Run | Yrd Mat Mat Mat Fac Fac Was Fac Low Distress Signals 4 | . . . 2 1 . . 1 . Communications Jammed . | . . . . . . . . . Distress Signals . | . . . . . . . . . Times Spotted 109 | . 3 11 15 35 30 4 9 2 Peak Tracking Total 14 | . 2 5 5 5 14 4 3 3 Tactical Retreats 8 | . . . 1 3 1 . 3 . Traps | -11 -10 -9 -8 -7 -6 -6 -6 -6 ------- Run | Yrd Mat Mat Mat Fac Fac Was Fac Low Traps Triggered 5 | . . 1 . 1 2 . . 1 Indirectly . | . . . . . . . . . Trap Hack Attempts . | . . . . . . . . . Triggered . | . . . . . . . . . Disarmed . | . . . . . . . . . Reprogrammed . | . . . . . . . . . Reused . | . . . . . . . . . Traps Extracted . | . . . . . . . . . Installed . | . . . . . . . . . Triggered 1 | . . . . . . . . 1 Machines | -11 -10 -9 -8 -7 -6 -6 -6 -6 ---------- Run | Yrd Mat Mat Mat Fac Fac Was Fac Low Machines Disabled 10 | . . . . 3 7 . . . Max in Single Turn 7 | . . . . 1 7 . . . Garrison Access 1 | . . . 1 . . . . . Machines Repaired . | . . . . . . . . . Machines Dismantled . | . . . . . . . . . Machines Sabotaged . | . . . . . . . . . Overloaded Fab Kills . | . . . . . . . . . Hacking | -11 -10 -9 -8 -7 -6 -6 -6 -6 --------- Run | Yrd Mat Mat Mat Fac Fac Was Fac Low Machines Accessed 18 | . . . 1 7 3 . 7 . Terminals 9 | . . . . 4 2 . 3 . Fabricators 5 | . . . . 3 1 . 1 . Repair Stations . | . . . . . . . . . Recycling Units 2 | . . . . . . . 2 . Scanalyzers . | . . . . . . . . . Garrison Access 2 | . . . 1 . . . 1 . Total Hacks 39 | . . . 2 14 6 . 17 . Successful 18 | . . . 1 8 3 . 6 . Failed 21 | . . . 1 6 3 . 11 . Catastrophic 5 | . . . . 1 1 . 3 . Database Lockouts . | . . . . . . . . . Manual 14 | . . . . 8 2 . 4 . Terminals 21 | . . . . 9 4 . 8 . Fabricators 9 | . . . . 5 2 . 2 . Repair Stations . | . . . . . . . . . Recycling Units 5 | . . . . . . . 5 . Scanalyzers . | . . . . . . . . . Garrison Access 4 | . . . 2 . . . 2 . Terminal Hacks 6 | . . . . 3 2 . 1 . Prototype ID Bank 1 | . . . . . 1 . . . Alert Level 1 | . . . . 1 . . . . Locate Traps 3 | . . . . 1 1 . 1 . Zone Layout 1 | . . . . 1 . . . . Fabricator Hacks 1 | . . . . 1 . . . . Network Status 1 | . . . . 1 . . . . Repair Station Hacks . | . . . . . . . . . Recycling Unit Hacks 4 | . . . . . . . 4 . Process 1 | . . . . . . . 1 . Report Inventory 2 | . . . . . . . 2 . Retrieve Matter 1 | . . . . . . . 1 . Scanalyzer . | . . . . . . . . . Garrison Access Hacks 1 | . . . 1 . . . . . Seal Access 1 | . . . 1 . . . . . Unauthorized Hacks 5 | . . . . 3 1 . 1 . Terminals 4 | . . . . 2 1 . 1 . Botnet 4 | . . . . 2 1 . 1 . Fabricators 1 | . . . . 1 . . . . Report 1 | . . . . 1 . . . . Repair Stations . | . . . . . . . . . Recycling Units . | . . . . . . . . . Scanalyzers . | . . . . . . . . . Garrison Access . | . . . . . . . . . Data Cores Recovered 1 | . . . 1 . . . . . Used . | . . . . . . . . . Hacking Detections 16 | . . . . 7 3 . 6 . Full Trace Events 1 | . . . . . . . 1 . Feedback Events . | . . . . . . . . . Feedback Blocked . | . . . . . . . . . Robot Schematics Acquired . | . . . . . . . . . Robots Built . | . . . . . . . . . Authchips . | . . . . . . . . . Time . | . . . . . . . . . Total Robot Build Rating . | . . . . . . . . . Part Schematics Acquired . | . . . . . . . . . Parts Built . | . . . . . . . . . Authchips . | . . . . . . . . . Time . | . . . . . . . . . Total Part Build Rating . | . . . . . . . . . Parts Repaired . | . . . . . . . . . Time . | . . . . . . . . . Parts Recycled . | . . . . . . . . . Recycled Matter 4 | . . . . . . . 4 . Retrieved Matter 4 | . . . . . . . 4 . Retrieved Components . | . . . . . . . . . Parts Scanalyzed . | . . . . . . . . . Part Schematics Acquired . | . . . . . . . . . Parts Damaged . | . . . . . . . . . Bothacking | -11 -10 -9 -8 -7 -6 -6 -6 -6 ------------ Run | Yrd Mat Mat Mat Fac Fac Was Fac Low Used RIF Installer . | . . . . . . . . . Robots Hacked . | . . . . . . . . . Non-combat . | . . . . . . . . . Combat . | . . . . . . . . . Robot Hacks Applied . | . . . . . . . . . Relay Couplers Released . | . . . . . . . . . Fabnet Peak Effective % . | . . . . . . . . . Robots Rewired 1 | . . . . 1 . . . . Allies Hacked . | . . . . . . . . . Hacks Repelled . | . . . . . . . . . Allies | -11 -10 -9 -8 -7 -6 -6 -6 -6 -------- Run | Yrd Mat Mat Mat Fac Fac Was Fac Low Total Allies 1 | . . . . 1 . . . . Largest Group 1 | . . . . 1 . . . . Highest-Rated Group 16 | . . . . 16 . . . . Highest-Rated Ally 16 | . . . . 16 . . . . Total Orders . | . . . . . . . . . Ally Attacks 3 | . . . . 3 . . . . Total Damage 34 | . . . . 34 . . . . Kills . | . . . . . . . . . Allies Corrupted . | . . . . . . . . . Allies Melted . | . . . . . . . . . Intel | -11 -10 -9 -8 -7 -6 -6 -6 -6 ------- Run | Yrd Mat Mat Mat Fac Fac Was Fac Low Robot Analysis Total . | . . . . . . . . . Derelict Logs Recovered . | . . . . . . . . . Drone Launches . | . . . . . . . . . Drone Recoveries . | . . . . . . . . . Exploration | -11 -10 -9 -8 -7 -6 -6 -6 -6 ------------- Run | Yrd Mat Mat Mat Fac Fac Was Fac Low Turns Passed 4001 | . 90 342 620 1319 924 115 505 86 Spaces Moved 3167 | 1 57 170 252 826 483 133 1005 240 Core 184 | . . . . . 10 133 41 . Treads 122 | . . 30 . . 92 . . . Legs 58 | 1 57 . . . . . . . Wheels 1599 | . . 140 252 826 381 . . . Hover . | . . . . . . . . . Flight 1204 | . . . . . . . 964 240 Fastest Speed 32 | 120 120 90 90 90 50 50 32 32 Average Speed 86 | 120 120 106 104 124 139 50 38 32 Slowest Speed 240 | 120 120 160 110 160 240 50 50 32 Overloaded Moves . | . . . . . . . . . Propulsion Burnouts . | . . . . . . . . . Robots Hopped 4 | . . . . . . . 4 . Cave-ins Triggered . | . . . . . . . . . Exploration Rate (%) 26 | 2 23 22 31 30 12 74 21 23 Regions Visited 8 Branch Regions 1 Pre-discovered Areas . | . . . . . . . . . Known Exits Taken 1 | . . . . . . . 1 . Unknown Exits Taken 5 | 1 1 1 1 1 . . . . Scrap Searched . | . . . . . . . . . Spaces Dug 17 | . . . . 1 9 . 7 . Terrain Destroyed 64 | . . . 1 13 43 . 7 . Melee 17 | . . . . 1 9 . 7 . Projectile 7 | . . . 1 2 4 . . . AOE 40 | . . . . 10 30 . . . Terrain Rammed . | . . . . . . . . . Walls Destroyed . | . . . . . . . . . Machines Disabled . | . . . . . . . . . Actions | -11 -10 -9 -8 -7 -6 -6 -6 -6 --------- Run | Yrd Mat Mat Mat Fac Fac Was Fac Low Total 4074 | . 68 279 546 994 653 181 1105 248 Wait 541 | . 5 65 239 37 79 45 64 7 Move 3152 | . 56 169 251 825 483 132 996 240 Hop 4 | . . . . . . . 4 . Pick Up 51 | . 2 3 7 19 10 2 8 . Fast Attach 14 | . . 2 1 2 4 . 5 . Attach 33 | . . 2 4 5 15 1 6 . Detach 7 | . . . . 3 2 . 2 . Swap 44 | . . 7 6 19 11 . 1 . Drop 53 | . . 6 9 22 8 1 7 . Fire 136 | . 5 25 29 53 24 . . . Melee 30 | . . . . 1 16 . 12 1 Ram . | . . . . . . . . . Kick . | . . . . . . . . . Crush 1 | . . . . . 1 . . . Escape Stasis 4 | . . . . 4 . . . . Rewire 4 | . . . . 4 . . . . Trap . | . . . . . . . . . Miscellaneous . | . . . . . . . . . Route ------- -11/Scrapyard -10/Materials -9/Materials -8/Materials -7/Factory -6/Factory -6/Waste -6/Factory -6/Lower Caves History --------- Turn | Location | Event 1 | -11/Scrapyard | Discovered new exit (range 0) 1 | -11/Scrapyard | Entered Materials 79 | -10/Materials | Discovered new exit (range 11) 91 | -10/Materials | Entered another Materials area 91 | -9/Materials | Evolved 2 slots: Propulsion x1, Weapon x1 424 | -9/Materials | Discovered new exit (range 10) 433 | -9/Materials | Entered another Materials area 433 | -8/Materials | Evolved 2 slots: Weapon x2 542 | -8/Materials | Build established: Scavenger-Tank 1040 | -8/Materials | Discovered new exit (range 11) 1053 | -8/Materials | Entered Factory 1053 | -7/Factory | Evolved 2 slots: Propulsion x1, Utility x1 2213 | -7/Factory | Build established: Tank 2348 | -7/Factory | Discovered new exit (range 15) 2372 | -7/Factory | Entered another Factory area 2372 | -6/Factory | Evolved 2 slots: Utility x2 2523 | -6/Factory | Discovered new exit (range 4) 2529 | -6/Factory | Identified exit to Lower Caves 3047 | -6/Factory | Garrison activated, responded to threat 3080 | -6/Factory | Lost 3 parts (1u2w) 3207 | -6/Factory | Lost 4 parts (1n3w) 3244 | -6/Factory | Core integrity fell below 50% 3291 | -6/Factory | Released all parts (4) 3292 | -6/Factory | Core integrity fell below 20% 3296 | -6/Factory | Sucked down chute 3296 | -6/Factory | Entered Waste 3322 | -6/Waste | Lost 11 parts (1p4n4u2w) 3354 | -6/Waste | Spotted C-40 Crusher 3371 | -6/Waste | Spotted C-40 Crusher 3378 | -6/Waste | Spotted C-40 Crusher 3391 | -6/Waste | Discovered new exit (range 16) 3391 | -6/Waste | Spotted C-40 Crusher 3391 | -6/Waste | Spotted C-40 Crusher 3411 | -6/Waste | Entered Factory 3474 | -6/Factory | Build established: Mutant 3583 | -6/Factory | Discovered exit to Lower Caves (range 13) 3916 | -6/Factory | Entered Lower Caves 4002 | -6/Lower Caves | Destroyed by Dirty Bomb Trap Last Messages --------------- data lost. 03869_ ALERT: Hostiles spotted, dispatching reinforcements to Terminal F006. 03877_ K-01 Serf cleans the Neutrino Reactor. 03892_ System corrupted: Matter fused (-5). 03911_ ALERT: Rogue bot located, Programmers report to Factory Zone 1Y. 03913_ X|Z&4T=OW4J9 H2Q=XHSA2CNJV1R0FG>